[Event "Early-Titled-Tuesday-Blitz-October-17-2023"]
[Site "Chess.com"]
[Date "2023.10.17"]
[Round "2"]
[White "DanielTitichoca"]
[Black "MAGMAchess02"]
[Result "1-0"]
[WhiteElo "2568"]
[BlackElo "2344"]
[TimeControl "180+1"]
[EndTime "8:19:17 PDT"]
[Termination "DanielTitichoca won on time"]

1. e4 {[%clk 0:03:00.9]} 1... c5 {[%clk 0:02:56.6]} 2. Nc3 {[%clk 0:03:00]} 2...
Nc6 {[%clk 0:02:55.8]} 3. Nf3 {[%clk 0:02:59.6]} 3... e6 {[%clk 0:02:52.7]} 4.
Bb5 {[%clk 0:02:58.4]} 4... Nd4 {[%clk 0:02:52.6]} 5. O-O {[%clk 0:02:58.4]}
5... Ne7 {[%clk 0:02:51.8]} 6. Nxd4 {[%clk 0:02:56.7]} 6... cxd4 {[%clk
0:02:50.4]} 7. Ne2 {[%clk 0:02:57.4]} 7... Qb6 {[%clk 0:02:50.4]} 8. a4 {[%clk
0:02:55.5]} 8... a6 {[%clk 0:02:36.3]} 9. Bd3 {[%clk 0:02:53.1]} 9... Nc6 {[%clk
0:02:36.5]} 10. c3 {[%clk 0:02:49.2]} 10... g6 {[%clk 0:02:30.7]} 11. b4 {[%clk
0:02:45.1]} 11... Bg7 {[%clk 0:02:26.7]} 12. a5 {[%clk 0:02:37.7]} 12... Qc7
{[%clk 0:02:21.1]} 13. cxd4 {[%clk 0:02:30]} 13... Nxd4 {[%clk 0:02:18.2]} 14.
Rb1 {[%clk 0:02:16]} 14... O-O {[%clk 0:02:15.3]} 15. Kh1 {[%clk 0:02:07.5]}
15... d5 {[%clk 0:01:49.8]} 16. exd5 {[%clk 0:01:54.1]} 16... exd5 {[%clk
0:01:50.7]} 17. Bb2 {[%clk 0:01:54]} 17... Nxe2 {[%clk 0:01:47.1]} 18. Bxg7
{[%clk 0:01:53.2]} 18... Kxg7 {[%clk 0:01:48]} 19. Qxe2 {[%clk 0:01:51.5]} 19...
Bd7 {[%clk 0:01:42.9]} 20. Rbc1 {[%clk 0:01:51.6]} 20... Qd6 {[%clk 0:01:42.6]}
21. Rc5 {[%clk 0:01:49.5]} 21... Bc6 {[%clk 0:01:38.4]} 22. Qg4 {[%clk
0:01:38.2]} 22... Rfe8 {[%clk 0:01:33.5]} 23. Qd4+ {[%clk 0:01:35.1]} 23... Qe5
{[%clk 0:01:33.1]} 24. Qxe5+ {[%clk 0:01:29.7]} 24... Rxe5 {[%clk 0:01:34]} 25.
f4 {[%clk 0:01:29.2]} 25... Re7 {[%clk 0:01:23.1]} 26. f5 {[%clk 0:01:29.4]}
26... f6 {[%clk 0:01:22.7]} 27. h4 {[%clk 0:01:23.9]} 27... Rae8 {[%clk
0:01:18.5]} 28. Kh2 {[%clk 0:01:24]} 28... Re1 {[%clk 0:01:11.4]} 29. Rxe1
{[%clk 0:01:21.7]} 29... Rxe1 {[%clk 0:01:12.3]} 30. Bxa6 {[%clk 0:01:21.7]}
30... bxa6 {[%clk 0:00:30.2]} 31. Rxc6 {[%clk 0:01:19.9]} 31... Re4 {[%clk
0:00:27.5]} 32. Rxa6 {[%clk 0:01:13.3]} 32... Rxh4+ {[%clk 0:00:26.3]} 33. Kg3
{[%clk 0:01:13]} 33... Rxb4 {[%clk 0:00:27.2]} 34. fxg6 {[%clk 0:01:11.7]} 34...
hxg6 {[%clk 0:00:26.8]} 35. Ra8 {[%clk 0:01:09]} 35... Ra4 {[%clk 0:00:23.4]}
36. a6 {[%clk 0:01:08.1]} 36... Kh6 {[%clk 0:00:23.1]} 37. a7 {[%clk 0:01:05.8]}
37... Kg5 {[%clk 0:00:23.1]} 38. Kf3 {[%clk 0:01:06.2]} 38... Kf5 {[%clk
0:00:18]} 39. Ke3 {[%clk 0:01:01.3]} 39... Kg4 {[%clk 0:00:17.9]} 40. Kd3 {[%clk
0:00:58.3]} 40... g5 {[%clk 0:00:14.1]} 41. Kc3 {[%clk 0:00:50.4]} 41... f5
{[%clk 0:00:12.5]} 42. d4 {[%clk 0:00:42.3]} 42... Kg3 {[%clk 0:00:07.8]} 43.
Kb3 {[%clk 0:00:38.1]} 43... Ra1 {[%clk 0:00:07.6]} 44. Kb4 {[%clk 0:00:38.4]}
44... g4 {[%clk 0:00:06.6]} 45. Kc5 {[%clk 0:00:34.5]} 45... f4 {[%clk
0:00:04.3]} 46. Kxd5 {[%clk 0:00:33.2]} 46... Kxg2 {[%clk 0:00:04]} 47. Ke4
{[%clk 0:00:26.3]} 1-0

[Event "Early-Titled-Tuesday-Blitz-October-17-2023"]
[Site "Chess.com"]
[Date "2023.10.17"]
[Round "2"]
[White "GMSAGOR"]
[Black "NowInChess"]
[Result "1-0"]
[WhiteElo "2468"]
[BlackElo "2206"]
[TimeControl "180+1"]
[EndTime "8:19:17 PDT"]
[Termination "GMSAGOR won on time"]

1. e4 {[%clk 0:03:00.9]} 1... e5 {[%clk 0:02:58.9]} 2. Nf3 {[%clk 0:03:01.4]}
2... d6 {[%clk 0:02:58.4]} 3. d4 {[%clk 0:02:58.9]} 3... Nf6 {[%clk 0:02:57]} 4.
Nc3 {[%clk 0:02:58]} 4... Nbd7 {[%clk 0:02:55.6]} 5. Bc4 {[%clk 0:02:55.5]} 5...
h6 {[%clk 0:02:55.1]} 6. dxe5 {[%clk 0:02:51.6]} 6... dxe5 {[%clk 0:02:54.9]} 7.
Nd5 {[%clk 0:02:50.7]} 7... c6 {[%clk 0:02:52.2]} 8. Nxf6+ {[%clk 0:02:38.9]}
8... Qxf6 {[%clk 0:02:51.2]} 9. O-O {[%clk 0:02:35.7]} 9... Bc5 {[%clk
0:02:47.7]} 10. Qe2 {[%clk 0:02:32.7]} 10... Nf8 {[%clk 0:02:39.2]} 11. Ne1
{[%clk 0:02:24.8]} 11... b5 {[%clk 0:02:34.6]} 12. Bb3 {[%clk 0:02:19.2]} 12...
Be6 {[%clk 0:02:32.6]} 13. Nd3 {[%clk 0:02:15.3]} 13... Bxb3 {[%clk 0:02:20.6]}
14. axb3 {[%clk 0:02:12.8]} 14... Ne6 {[%clk 0:02:19.4]} 15. Ra6 {[%clk
0:01:57.9]} 15... Nd4 {[%clk 0:02:08.4]} 16. Qd1 {[%clk 0:01:53.8]} 16... Bb6
{[%clk 0:01:55.1]} 17. Be3 {[%clk 0:01:52.5]} 17... O-O {[%clk 0:01:45.5]} 18.
c3 {[%clk 0:01:52]} 18... Ne6 {[%clk 0:01:26.4]} 19. Bxb6 {[%clk 0:01:52]} 19...
axb6 {[%clk 0:01:27.2]} 20. Rxb6 {[%clk 0:01:52.6]} 20... Rfd8 {[%clk
0:01:16.8]} 21. Qc2 {[%clk 0:01:52.3]} 21... Qg5 {[%clk 0:01:02.8]} 22. Rxc6
{[%clk 0:01:36]} 22... Rxd3 {[%clk 0:01:01]} 23. Qxd3 {[%clk 0:01:35.7]} 23...
Qxg2+ {[%clk 0:01:01.3]} 24. Kxg2 {[%clk 0:01:35.2]} 24... Nf4+ {[%clk
0:01:01.9]} 25. Kf3 {[%clk 0:01:34.3]} 25... Nxd3 {[%clk 0:01:01.8]} 26. Rd1
{[%clk 0:01:24.9]} 26... Nf4 {[%clk 0:00:55]} 27. Rc5 {[%clk 0:01:22.5]} 27...
f6 {[%clk 0:00:44.2]} 28. Rxb5 {[%clk 0:01:22.2]} 28... Ra2 {[%clk 0:00:44.6]}
29. Rd2 {[%clk 0:00:59.1]} 29... Ra1 {[%clk 0:00:41.9]} 30. c4 {[%clk
0:00:50.4]} 30... Rh1 {[%clk 0:00:33.1]} 31. c5 {[%clk 0:00:40.2]} 31... Rxh2
{[%clk 0:00:31.8]} 32. Rd8+ {[%clk 0:00:38.9]} 32... Kh7 {[%clk 0:00:30.8]} 33.
Ke3 {[%clk 0:00:39.8]} 33... Rh3+ {[%clk 0:00:14.5]} 34. Kd2 {[%clk 0:00:39.6]}
34... Rf3 {[%clk 0:00:13]} 35. c6 {[%clk 0:00:33.8]} 35... Rxf2+ {[%clk
0:00:12.8]} 36. Kc3 {[%clk 0:00:33.6]} 36... Rf1 {[%clk 0:00:12]} 37. Kb4 {[%clk
0:00:30.5]} 37... Ne6 {[%clk 0:00:09.3]} 38. Rd6 {[%clk 0:00:25.1]} 38... Nc7
{[%clk 0:00:03.4]} 39. Rb7 {[%clk 0:00:24.9]} 39... Na6+ {[%clk 0:00:02.2]} 40.
Kb5 {[%clk 0:00:25.3]} 40... Ra1 {[%clk 0:00:01.2]} 41. Ra7 {[%clk 0:00:20.3]}
1-0

[Event "Early-Titled-Tuesday-Blitz-October-17-2023"]
[Site "Chess.com"]
[Date "2023.10.17"]
[Round "2"]
[White "Sadykov_Ramil"]
[Black "MDBIchess"]
[Result "1-0"]
[WhiteElo "2607"]
[BlackElo "2297"]
[TimeControl "180+1"]
[EndTime "8:19:18 PDT"]
[Termination "Sadykov_Ramil won on time"]

1. Nf3 {[%clk 0:03:00.9]} 1... d5 {[%clk 0:02:56.9]} 2. c4 {[%clk 0:02:58.4]}
2... e6 {[%clk 0:02:53.8]} 3. g3 {[%clk 0:02:57.8]} 3... dxc4 {[%clk 0:02:53.6]}
4. Qa4+ {[%clk 0:02:55.3]} 4... Nd7 {[%clk 0:02:52.1]} 5. Bg2 {[%clk 0:02:49.9]}
5... a6 {[%clk 0:02:51.9]} 6. Qxc4 {[%clk 0:02:49.1]} 6... b5 {[%clk 0:02:52.1]}
7. Qc2 {[%clk 0:02:49.3]} 7... Bb7 {[%clk 0:02:52.2]} 8. O-O {[%clk 0:02:46.3]}
8... Ngf6 {[%clk 0:02:51.7]} 9. a4 {[%clk 0:02:45.1]} 9... c5 {[%clk 0:02:50.3]}
10. d4 {[%clk 0:02:27.5]} 10... Rc8 {[%clk 0:02:28.1]} 11. axb5 {[%clk
0:02:21.5]} 11... axb5 {[%clk 0:02:11.8]} 12. Qb3 {[%clk 0:02:17.6]} 12... Qb6
{[%clk 0:02:07.7]} 13. Rd1 {[%clk 0:01:49.4]} 13... cxd4 {[%clk 0:01:51.9]} 14.
Nxd4 {[%clk 0:01:44.8]} 14... Bxg2 {[%clk 0:01:40.4]} 15. Kxg2 {[%clk
0:01:45.7]} 15... Bc5 {[%clk 0:01:14.7]} 16. e3 {[%clk 0:01:13.2]} 16... Bxd4
{[%clk 0:01:07.9]} 17. exd4 {[%clk 0:00:56]} 17... O-O {[%clk 0:01:06.7]} 18.
Nc3 {[%clk 0:00:55]} 18... b4 {[%clk 0:01:03.8]} 19. Na4 {[%clk 0:00:46.8]}
19... Qc6+ {[%clk 0:00:55.4]} 20. Qf3 {[%clk 0:00:42.5]} 20... Qxf3+ {[%clk
0:00:47.9]} 21. Kxf3 {[%clk 0:00:43.4]} 21... Nd5 {[%clk 0:00:48.1]} 22. Be3
{[%clk 0:00:41]} 22... Rc2 {[%clk 0:00:30.9]} 23. Rdc1 {[%clk 0:00:28.4]} 23...
b3 {[%clk 0:00:14]} 24. Rxc2 {[%clk 0:00:11.4]} 24... bxc2 {[%clk 0:00:14.9]}
25. Rc1 {[%clk 0:00:11.9]} 25... Rc8 {[%clk 0:00:11.9]} 26. Nc5 {[%clk
0:00:11.8]} 26... Nxc5 {[%clk 0:00:10.8]} 27. Rxc2 {[%clk 0:00:11.4]} 27... g6
{[%clk 0:00:04.7]} 28. dxc5 {[%clk 0:00:09.4]} 28... Nb4 {[%clk 0:00:02.7]} 29.
Rc4 {[%clk 0:00:08.7]} 29... Nc6 {[%clk 0:00:03.1]} 30. Ke2 {[%clk 0:00:05.1]}
30... Rb8 {[%clk 0:00:02.8]} 31. Bc1 {[%clk 0:00:02.2]} 31... Rb3 {[%clk
0:00:02.2]} 32. f4 {[%clk 0:00:02.5]} 32... h5 {[%clk 0:00:01.7]} 33. Kd2 {[%clk
0:00:02.3]} 33... Na5 {[%clk 0:00:01.7]} 34. Kc2 {[%clk 0:00:02.3]} 1-0

[Event "Early-Titled-Tuesday-Blitz-October-17-2023"]
[Site "Chess.com"]
[Date "2023.10.17"]
[Round "2"]
[White "topin8"]
[Black "cristiano78"]
[Result "1-0"]
[WhiteElo "2496"]
[BlackElo "2255"]
[TimeControl "180+1"]
[EndTime "8:19:21 PDT"]
[Termination "topin8 won by checkmate"]

1. e4 {[%clk 0:03:00.9]} 1... c5 {[%clk 0:02:59.6]} 2. Nf3 {[%clk 0:03:01]} 2...
d6 {[%clk 0:02:59.1]} 3. c3 {[%clk 0:03:01.2]} 3... Nf6 {[%clk 0:02:58.6]} 4.
Be2 {[%clk 0:03:01.7]} 4... Bd7 {[%clk 0:02:58.1]} 5. d3 {[%clk 0:02:59.8]} 5...
Bc6 {[%clk 0:02:57.9]} 6. O-O {[%clk 0:03:00.1]} 6... Nbd7 {[%clk 0:02:57.4]} 7.
Re1 {[%clk 0:02:58.1]} 7... c4 {[%clk 0:02:56.3]} 8. d4 {[%clk 0:02:35.7]} 8...
Bxe4 {[%clk 0:02:52.6]} 9. Bxc4 {[%clk 0:02:35.3]} 9... e6 {[%clk 0:02:44.1]}
10. Nbd2 {[%clk 0:02:33.1]} 10... d5 {[%clk 0:02:39.1]} 11. Bb3 {[%clk
0:02:20.6]} 11... Bg6 {[%clk 0:02:37.9]} 12. Ne5 {[%clk 0:02:00.4]} 12... Bd6
{[%clk 0:02:35.8]} 13. Ndf3 {[%clk 0:01:53.2]} 13... O-O {[%clk 0:02:30.9]} 14.
Nxg6 {[%clk 0:01:51.7]} 14... hxg6 {[%clk 0:02:29.2]} 15. Bc2 {[%clk 0:01:48.5]}
15... Nh7 {[%clk 0:02:17.3]} 16. Qd3 {[%clk 0:01:21.1]} 16... Ndf6 {[%clk
0:02:14.1]} 17. Qe2 {[%clk 0:01:18.8]} 17... Nh5 {[%clk 0:02:09]} 18. g3 {[%clk
0:01:16.8]} 18... Qc7 {[%clk 0:01:59.1]} 19. Kg2 {[%clk 0:01:09.6]} 19... Rae8
{[%clk 0:01:56.1]} 20. Ne5 {[%clk 0:01:09.4]} 20... N5f6 {[%clk 0:01:44.3]} 21.
h4 {[%clk 0:01:01.3]} 21... Nd7 {[%clk 0:01:43.1]} 22. f4 {[%clk 0:00:57.7]}
22... Bxe5 {[%clk 0:01:41.7]} 23. fxe5 {[%clk 0:00:54.7]} 23... a6 {[%clk
0:01:36]} 24. Bf4 {[%clk 0:00:32.2]} 24... Qc6 {[%clk 0:01:20]} 25. h5 {[%clk
0:00:31.5]} 25... g5 {[%clk 0:01:15.9]} 26. Bxh7+ {[%clk 0:00:22.8]} 26... Kh8
{[%clk 0:01:15.7]} 27. Bxg5 {[%clk 0:00:23.7]} 27... Kxh7 {[%clk 0:01:13.6]} 28.
Qd3+ {[%clk 0:00:20.5]} 28... Kh8 {[%clk 0:01:11.7]} 29. h6 {[%clk 0:00:17.2]}
29... g6 {[%clk 0:01:11.3]} 30. Qf3 {[%clk 0:00:17.3]} 30... Kh7 {[%clk
0:01:05.9]} 31. Bf6 {[%clk 0:00:16.8]} 31... Qc8 {[%clk 0:00:55.2]} 32. g4
{[%clk 0:00:13.4]} 32... Rg8 {[%clk 0:00:51.3]} 33. Bg7 {[%clk 0:00:09.1]} 33...
Re7 {[%clk 0:00:47.4]} 34. Re2 {[%clk 0:00:08.7]} 34... b5 {[%clk 0:00:44.3]}
35. Rf2 {[%clk 0:00:08.5]} 35... Nb6 {[%clk 0:00:42.5]} 36. Bf6 {[%clk
0:00:08.2]} 36... Rc7 {[%clk 0:00:41.1]} 37. Bg5 {[%clk 0:00:07.1]} 37... b4
{[%clk 0:00:38.5]} 38. Qxf7+ {[%clk 0:00:02.9]} 38... Rxf7 {[%clk 0:00:29.4]}
39. Rxf7+ {[%clk 0:00:03.8]} 39... Rg7 {[%clk 0:00:27.9]} 40. Rxg7+ {[%clk
0:00:03.5]} 40... Kh8 {[%clk 0:00:26]} 41. Bf6 {[%clk 0:00:04.4]} 41... Nd7
{[%clk 0:00:16.8]} 42. Rxd7+ {[%clk 0:00:04.2]} 42... Kg8 {[%clk 0:00:16.9]} 43.
h7+ {[%clk 0:00:05.1]} 43... Kf8 {[%clk 0:00:15.6]} 44. h8=Q# {[%clk 0:00:06]}
1-0

[Event "Early-Titled-Tuesday-Blitz-October-17-2023"]
[Site "Chess.com"]
[Date "2023.10.17"]
[Round "2"]
[White "PowerThinking2650"]
[Black "ChessQueen"]
[Result "0-1"]
[WhiteElo "2525"]
[BlackElo "2720"]
[TimeControl "180+1"]
[EndTime "8:19:23 PDT"]
[Termination "ChessQueen won on time"]

1. e4 {[%clk 0:03:00.9]} 1... c6 {[%clk 0:02:59.5]} 2. d4 {[%clk 0:03:00.6]}
2... d5 {[%clk 0:02:59.5]} 3. Nc3 {[%clk 0:03:01.2]} 3... dxe4 {[%clk
0:02:59.5]} 4. Nxe4 {[%clk 0:03:02]} 4... Nf6 {[%clk 0:03:00]} 5. Nxf6+ {[%clk
0:03:02.4]} 5... exf6 {[%clk 0:03:00.9]} 6. Bc4 {[%clk 0:03:02.4]} 6... Bd6
{[%clk 0:03:00.1]} 7. Qe2+ {[%clk 0:03:02.4]} 7... Qe7 {[%clk 0:02:56.8]} 8.
Qxe7+ {[%clk 0:03:00.5]} 8... Bxe7 {[%clk 0:02:57.7]} 9. Ne2 {[%clk 0:03:00.6]}
9... Nd7 {[%clk 0:02:54.4]} 10. Bf4 {[%clk 0:02:57.1]} 10... Nb6 {[%clk
0:02:53.7]} 11. Bb3 {[%clk 0:02:57.4]} 11... Be6 {[%clk 0:02:53.8]} 12. O-O-O
{[%clk 0:02:56.3]} 12... O-O-O {[%clk 0:02:53.4]} 13. Rhe1 {[%clk 0:02:54.1]}
13... Rhe8 {[%clk 0:02:52.9]} 14. Nc3 {[%clk 0:02:46.6]} 14... Bb4 {[%clk
0:02:51.6]} 15. Re3 {[%clk 0:02:09.5]} 15... Bxc3 {[%clk 0:02:26.1]} 16. bxc3
{[%clk 0:01:55.9]} 16... Nd5 {[%clk 0:02:11.9]} 17. Bxd5 {[%clk 0:01:54.3]}
17... cxd5 {[%clk 0:02:12]} 18. h4 {[%clk 0:01:42]} 18... h5 {[%clk 0:02:10.2]}
19. Rde1 {[%clk 0:01:41]} 19... Kd7 {[%clk 0:02:10.1]} 20. Kd2 {[%clk
0:01:27.8]} 20... Rc8 {[%clk 0:02:08.4]} 21. Rb1 {[%clk 0:01:27.7]} 21... b6
{[%clk 0:02:07.9]} 22. Rb4 {[%clk 0:01:25]} 22... Rc6 {[%clk 0:02:06.4]} 23. Re1
{[%clk 0:01:23.2]} 23... Rec8 {[%clk 0:02:04.7]} 24. Rb3 {[%clk 0:01:00.3]}
24... Rc4 {[%clk 0:02:03.2]} 25. Re3 {[%clk 0:00:49.1]} 25... Ra4 {[%clk
0:02:02.7]} 26. a3 {[%clk 0:00:47.5]} 26... Ra5 {[%clk 0:02:02.8]} 27. Kc1
{[%clk 0:00:36]} 27... Rc4 {[%clk 0:02:02.3]} 28. Kb2 {[%clk 0:00:34.7]} 28...
Rc8 {[%clk 0:01:53.1]} 29. Rb4 {[%clk 0:00:30.7]} 29... Rg8 {[%clk 0:01:50]} 30.
Rg3 {[%clk 0:00:28.2]} 30... g6 {[%clk 0:01:48.2]} 31. Bd2 {[%clk 0:00:27]}
31... Bf5 {[%clk 0:01:44.5]} 32. Re3 {[%clk 0:00:25]} 32... b5 {[%clk
0:01:38.4]} 33. Re1 {[%clk 0:00:20.7]} 33... Rb8 {[%clk 0:01:30.5]} 34. Bf4
{[%clk 0:00:13.7]} 34... Rb7 {[%clk 0:01:28.4]} 35. g3 {[%clk 0:00:12.2]} 35...
Ra6 {[%clk 0:01:28.6]} 36. Bh6 {[%clk 0:00:09.9]} 36... Re6 {[%clk 0:01:23.3]}
37. Re3 {[%clk 0:00:07.8]} 37... a5 {[%clk 0:01:18.2]} 38. Rb3 {[%clk
0:00:07.6]} 38... Kc6 {[%clk 0:01:18.1]} 39. Bf8 {[%clk 0:00:07]} 39... a4
{[%clk 0:01:09.3]} 40. Rb4 {[%clk 0:00:06.8]} 40... Rxe3 {[%clk 0:01:08.2]} 41.
fxe3 {[%clk 0:00:06.7]} 41... Rb8 {[%clk 0:01:05.2]} 42. Bh6 {[%clk 0:00:06.1]}
42... Re8 {[%clk 0:01:04.9]} 43. Bf4 {[%clk 0:00:05.7]} 43... Re4 {[%clk
0:01:04.7]} 44. Kc1 {[%clk 0:00:05.7]} 44... Bd7 {[%clk 0:01:00.7]} 45. Kd2
{[%clk 0:00:05.8]} 45... Re8 {[%clk 0:00:59]} 46. Rb1 {[%clk 0:00:06.3]} 46...
Rg8 {[%clk 0:00:57.6]} 47. Rf1 {[%clk 0:00:06.9]} 47... g5 {[%clk 0:00:53.4]}
48. hxg5 {[%clk 0:00:07.1]} 48... fxg5 {[%clk 0:00:54.3]} 49. Be5 {[%clk
0:00:07.7]} 49... Be6 {[%clk 0:00:55]} 50. Rf6 {[%clk 0:00:07.6]} 50... h4
{[%clk 0:00:53.7]} 51. Rh6 {[%clk 0:00:07.3]} 51... hxg3 {[%clk 0:00:51.7]} 52.
Bxg3 {[%clk 0:00:07]} 52... g4 {[%clk 0:00:52.3]} 53. Ke1 {[%clk 0:00:05.8]}
53... Kd7 {[%clk 0:00:48.1]} 54. Kf2 {[%clk 0:00:05.9]} 54... Rc8 {[%clk
0:00:48.2]} 55. Be5 {[%clk 0:00:01.3]} 55... Rxc3 {[%clk 0:00:46.8]} 56. Kg3
{[%clk 0:00:02]} 56... Rxe3+ {[%clk 0:00:45.1]} 57. Kf4 {[%clk 0:00:01.9]} 57...
Rxa3 {[%clk 0:00:41.8]} 0-1

[Event "Early-Titled-Tuesday-Blitz-October-17-2023"]
[Site "Chess.com"]
[Date "2023.10.17"]
[Round "2"]
[White "ArtemDyachuk"]
[Black "bolwin"]
[Result "1-0"]
[WhiteElo "2638"]
[BlackElo "2262"]
[TimeControl "180+1"]
[EndTime "8:19:23 PDT"]
[Termination "ArtemDyachuk won by resignation"]

1. e4 {[%clk 0:03:00.9]} 1... Nf6 {[%clk 0:03:00.9]} 2. e5 {[%clk 0:03:00.4]}
2... Nd5 {[%clk 0:03:01.3]} 3. d4 {[%clk 0:03:00.5]} 3... d6 {[%clk 0:03:01.8]}
4. c4 {[%clk 0:03:00.4]} 4... Nb6 {[%clk 0:03:01.7]} 5. f4 {[%clk 0:03:01]} 5...
dxe5 {[%clk 0:03:01.5]} 6. fxe5 {[%clk 0:03:01.9]} 6... Nc6 {[%clk 0:03:02.3]}
7. Be3 {[%clk 0:03:00.5]} 7... Bf5 {[%clk 0:03:02.7]} 8. Nc3 {[%clk 0:03:00]}
8... e6 {[%clk 0:03:03.1]} 9. Nf3 {[%clk 0:03:00.2]} 9... Be7 {[%clk 0:03:03.4]}
10. Be2 {[%clk 0:02:58.9]} 10... f6 {[%clk 0:03:03.7]} 11. exf6 {[%clk
0:02:57.4]} 11... Bxf6 {[%clk 0:03:04.6]} 12. O-O {[%clk 0:02:57.9]} 12... O-O
{[%clk 0:03:04.9]} 13. Qd2 {[%clk 0:02:49.2]} 13... Qe7 {[%clk 0:03:04.3]} 14.
b3 {[%clk 0:02:40.1]} 14... Rad8 {[%clk 0:03:04.2]} 15. Rad1 {[%clk 0:02:27.6]}
15... h6 {[%clk 0:03:03.6]} 16. h3 {[%clk 0:02:14]} 16... g5 {[%clk 0:03:03.4]}
17. Qe1 {[%clk 0:01:48.6]} 17... Qg7 {[%clk 0:03:02.2]} 18. Qf2 {[%clk 0:01:44]}
18... h5 {[%clk 0:02:56.4]} 19. d5 {[%clk 0:01:25.8]} 19... Ne7 {[%clk
0:02:34.9]} 20. Bd4 {[%clk 0:01:08]} 20... exd5 {[%clk 0:02:13.9]} 21. cxd5
{[%clk 0:00:59.5]} 21... Nexd5 {[%clk 0:01:43.1]} 22. Nxd5 {[%clk 0:00:58.4]}
22... Nxd5 {[%clk 0:01:42.8]} 23. Bc4 {[%clk 0:00:58.8]} 23... c6 {[%clk
0:01:41.6]} 24. Bxf6 {[%clk 0:00:55.4]} 24... Rxf6 {[%clk 0:01:39.6]} 25. Nd4
{[%clk 0:00:46.8]} 25... Be6 {[%clk 0:01:15]} 26. Qxf6 {[%clk 0:00:34.3]} 26...
Qxf6 {[%clk 0:01:02.3]} 27. Rxf6 {[%clk 0:00:33.2]} 27... Nxf6 {[%clk 0:01:02]}
28. Bxe6+ {[%clk 0:00:33.2]} 28... Kh8 {[%clk 0:00:39.7]} 29. Rf1 {[%clk
0:00:29]} 29... Rxd4 {[%clk 0:00:35.9]} 30. Rxf6 {[%clk 0:00:28.1]} 30... Rd6
{[%clk 0:00:24.9]} 31. Rf8+ {[%clk 0:00:27.5]} 31... Kg7 {[%clk 0:00:24.5]} 32.
Rg8+ {[%clk 0:00:27.3]} 32... Kh7 {[%clk 0:00:24.4]} 33. Re8 {[%clk 0:00:25.1]}
33... Kg7 {[%clk 0:00:22.3]} 34. Bc4 {[%clk 0:00:23.3]} 34... b5 {[%clk
0:00:20.7]} 35. Be2 {[%clk 0:00:23.2]} 35... Rd2 {[%clk 0:00:20.9]} 36. Bxh5
{[%clk 0:00:20.8]} 36... Rxa2 {[%clk 0:00:21]} 37. Re6 {[%clk 0:00:21.2]} 37...
c5 {[%clk 0:00:20.4]} 38. Rg6+ {[%clk 0:00:21.1]} 38... Kh7 {[%clk 0:00:20.3]}
39. Rxg5 {[%clk 0:00:21.6]} 39... a5 {[%clk 0:00:20.8]} 40. Rxc5 {[%clk
0:00:21.1]} 40... a4 {[%clk 0:00:21.7]} 41. Rxb5 {[%clk 0:00:19.1]} 41... a3
{[%clk 0:00:20.7]} 42. Ra5 {[%clk 0:00:19.1]} 42... Ra1+ {[%clk 0:00:19.6]} 43.
Kh2 {[%clk 0:00:19.6]} 43... a2 {[%clk 0:00:19.7]} 44. Bf3 {[%clk 0:00:19.4]}
44... Kg7 {[%clk 0:00:19.2]} 45. b4 {[%clk 0:00:19.5]} 45... Kf6 {[%clk
0:00:17.9]} 46. Bd5 {[%clk 0:00:19.6]} 1-0

[Event "Early-Titled-Tuesday-Blitz-October-17-2023"]
[Site "Chess.com"]
[Date "2023.10.17"]
[Round "2"]
[White "Mykola-Bortnyk"]
[Black "2k28Lakers"]
[Result "1-0"]
[WhiteElo "2971"]
[BlackElo "2615"]
[TimeControl "180+1"]
[EndTime "8:19:24 PDT"]
[Termination "Mykola-Bortnyk won on time"]

1. e4 {[%clk 0:03:00.9]} 1... e5 {[%clk 0:02:59.6]} 2. Nf3 {[%clk 0:02:57.4]}
2... Nc6 {[%clk 0:02:59.9]} 3. Bb5 {[%clk 0:02:57.7]} 3... a6 {[%clk 0:03:00.2]}
4. Ba4 {[%clk 0:02:57.9]} 4... Nf6 {[%clk 0:03:00.5]} 5. Qe2 {[%clk 0:02:58.2]}
5... b5 {[%clk 0:02:59.8]} 6. Bb3 {[%clk 0:02:58.8]} 6... Bc5 {[%clk 0:03:00.3]}
7. O-O {[%clk 0:02:59]} 7... O-O {[%clk 0:02:58.6]} 8. c3 {[%clk 0:02:59.1]}
8... d6 {[%clk 0:02:24.4]} 9. Rd1 {[%clk 0:02:56.9]} 9... Bb6 {[%clk 0:02:20.7]}
10. h3 {[%clk 0:02:47.7]} 10... h6 {[%clk 0:02:20.8]} 11. d4 {[%clk 0:02:47.9]}
11... Qe7 {[%clk 0:02:19.9]} 12. d5 {[%clk 0:02:38.1]} 12... Nb8 {[%clk
0:02:18.1]} 13. a4 {[%clk 0:02:38.1]} 13... bxa4 {[%clk 0:02:11.4]} 14. Bxa4
{[%clk 0:02:37.7]} 14... Nbd7 {[%clk 0:02:08.5]} 15. Nbd2 {[%clk 0:02:34.2]}
15... Nc5 {[%clk 0:02:03.8]} 16. Bc2 {[%clk 0:02:33.9]} 16... Bd7 {[%clk
0:02:00.6]} 17. b4 {[%clk 0:02:27.2]} 17... Nb7 {[%clk 0:02:00.6]} 18. Nc4
{[%clk 0:02:24]} 18... Bb5 {[%clk 0:02:00.5]} 19. Bd3 {[%clk 0:02:24.2]} 19...
Ba7 {[%clk 0:01:48.8]} 20. Na5 {[%clk 0:01:59.4]} 20... Nxa5 {[%clk 0:01:46]}
21. Rxa5 {[%clk 0:01:52.1]} 21... Bb6 {[%clk 0:01:35.6]} 22. Ra2 {[%clk
0:01:42.9]} 22... Bxd3 {[%clk 0:01:34.9]} 23. Qxd3 {[%clk 0:01:39.6]} 23... a5
{[%clk 0:01:34.5]} 24. b5 {[%clk 0:01:36.4]} 24... Nd7 {[%clk 0:01:33.6]} 25.
Nd2 {[%clk 0:01:34.7]} 25... Nc5 {[%clk 0:01:17.4]} 26. Qf3 {[%clk 0:01:21.8]}
26... Qd7 {[%clk 0:01:17.5]} 27. g4 {[%clk 0:01:07.8]} 27... Qxb5 {[%clk
0:01:17.1]} 28. Nf1 {[%clk 0:01:04.8]} 28... Qc4 {[%clk 0:01:15.6]} 29. Re2
{[%clk 0:00:59.4]} 29... a4 {[%clk 0:01:15.4]} 30. Ba3 {[%clk 0:00:46]} 30...
Qb3 {[%clk 0:00:59.6]} 31. Ra1 {[%clk 0:00:45.1]} 31... Ba5 {[%clk 0:00:52.2]}
32. Bb2 {[%clk 0:00:35.6]} 32... Rab8 {[%clk 0:00:34]} 33. Ng3 {[%clk
0:00:35.8]} 33... g6 {[%clk 0:00:24.6]} 34. h4 {[%clk 0:00:35.6]} 34... Qb5
{[%clk 0:00:16.5]} 35. h5 {[%clk 0:00:35.4]} 35... Qd7 {[%clk 0:00:16.2]} 36.
Bc1 {[%clk 0:00:33.4]} 36... Kh7 {[%clk 0:00:15.4]} 37. Qe3 {[%clk 0:00:29.8]}
37... g5 {[%clk 0:00:12.1]} 38. Nf5 {[%clk 0:00:30.5]} 38... Nb3 {[%clk
0:00:11.7]} 39. Ra3 {[%clk 0:00:18.7]} 39... Nxc1 {[%clk 0:00:11.8]} 40. Qxc1
{[%clk 0:00:19.6]} 40... Bb6 {[%clk 0:00:11]} 41. Rea2 {[%clk 0:00:18.7]} 41...
Ra8 {[%clk 0:00:11.2]} 42. Qc2 {[%clk 0:00:18.8]} 42... Bc5 {[%clk 0:00:10.5]}
43. Rxa4 {[%clk 0:00:19.3]} 43... Rxa4 {[%clk 0:00:11.4]} 44. Qxa4 {[%clk
0:00:20.1]} 44... Rb8 {[%clk 0:00:12.1]} 45. Qxd7 {[%clk 0:00:20.1]} 1-0